[Event "Jerry Simon Memorial 2024"]
[Site "New York"]
[Date "2024.11.23"]
[Round "1.1"]
[White "Liu, Grant"]
[Black "Knowles, Chase"]
[Result "1-0"]
[ECO "A42"]
[WhiteElo "1716"]
[BlackElo "1983"]
[Annotator "RC"]
[PlyCount "140"]
[EventDate "2024.11.22"]
[EventType "swiss"]
[EventCountry "USA"]
[SourceTitle "playchess.com"]
[Source "ChessBase"]
[SourceQuality "1"]
[TimeControl "5400+30"]

1. d4 {[%emt 0:00:03]} g6 {[%emt 0:00:01]} 2. c4 {[%emt 0:00:08]} Bg7 {[%emt 0:00:05]} 3. Nc3 {[%emt 0:00:06]} d6 {[%emt 0:00:10]} 4. e4 {[%emt 0:00:20]} e5 {[%emt 0:00:52]} 5. d5 {[%emt 0:00:05]} a5 {[%emt 0:01:02]} 6. h3 {[%emt 0:01:09]} Ne7 {[%emt 0:02:28]} 7. Nf3 {[%emt 0:02:25]} O-O {[%emt 0:00:34]} 8. g4 {[%emt 0:02:17]} c6 {[%emt 0:07:36]} 9. Be3 {[%emt 0:03:39]} Na6 {[%emt 0:04:53]} 10. Rg1 {[%emt 0:02:56]} cxd5 {[%emt 0:03:46]} 11. cxd5 {[%emt 0:00:59]} h6 {[%emt 0:03:04]} 12. Qd2 {[%emt 0:03:53]} Kh7 {[%emt 0:00:11]} 13. h4 {[%emt 0:01:18]} Ng8 {[%emt 0:04:14]} 14. Be2 {[%emt 0:04:44]} Bd7 {[%emt 0:01:49]} 15. Rh1 {[%emt 0:02:18]} Rc8 {[%emt 0:06:42]} 16. Rc1 {[%emt 0:09:31]} Nc5 {[%emt 0:01:09]} 17. h5 {[%emt 0:02:07]} g5 {[%emt 0:01:46]} 18. Bxc5 {[%emt 0:08:14]} Rxc5 {[%emt 0:01:12]} 19. Qe3 {[%emt 0:00:34]} Qc8 {[%emt 0:06:34]} 20. Nd2 {[%emt 0:02:57]} Bxg4 {[%emt 0:06:14]} 21. Nb3 {[%emt 0:01:20]} Rc7 {[%emt 0:02:05]} 22. Nxa5 {[%emt 0:01:25]} Nf6 {[%emt 0:05:17]} 23. b3 {[%emt 0:07:01]} Ne8 {[%emt 0:11:41]} 24. Nc4 {[%emt 0:02:41]} Bxe2 {[%emt 0:00:13]} 25. Kxe2 {[%emt 0:00:21]} Qg4+ {[%emt 0:05:15]} 26. f3 {[%emt 0:02:04]} Qg2+ {[%emt 0:02:41]} 27. Kd3 {[%emt 0:01:33]} g4 {[%emt 0:01:57]} 28. fxg4 {[%emt 0:01:17]} Qxg4 {[%emt 0:00:59]} 29. Rcg1 {[%emt 0:04:50]} Qd7 {[%emt 0:00:22]} 30. a4 {[%emt 0:01:49]} Qe7 {[%emt 0:03:03]} 31. Nb6 {[%emt 0:04:28]} Qd8 {[%emt 0:00:33]} 32. Rh2 {[%emt 0:04:19]} Bf6 {[%emt 0:00:31]} 33. Nb5 {[%emt 0:01:57]} Re7 {[%emt 0:01:38]} 34. Qf2 {[%emt 0:01:42]} Bg5 {[%emt 0:00:54]} 35. Qf5+ {[%emt 0:00:51]} Kh8 {[%emt 0:00:44]} 36. Nc4 {[%emt 0:00:32]} Ng7 {[%emt 0:00:49]} 37. Qf3 {[%emt 0:02:22]} Rd7 {[%emt 0:01:44]} 38. Rhg2 {[%emt 0:01:54]} f5 {[%emt 0:00:44]} 39. Kc2 {[%emt 0:04:08]} fxe4 {[%emt 0:02:32]} 40. Qxe4 {[%emt 0:00:19]} Nxh5 {[%emt 0:03:00]} 41. Rh2 {[%emt 0:04:02]} Nf4 {[%emt 0:01:14]} 42. Nbxd6 {[%emt 0:00:56]} Qf6 {[%emt 0:06:58]} 43. Qxe5 {[%emt 0:04:49]} Rxd6 {[%emt 0:00:58]} 44. Rxg5 {[%emt 0:00:50]} Qxe5 {[%emt 0:00:47]} 45. Nxe5 {[%emt 0:00:10]} Kh7 {[%emt 0:00:22]} 46. Ng4 {[%emt 0:01:01]} Nxd5 {[%emt 0:00:37]} 47. Rgh5 {[%emt 0:01:30]} Rc8+ {[%emt 0:00:33]} 48. Kb2 {[%emt 0:00:19]} Rcc6 {[%emt 0:00:03]} 49. Ne5 {[%emt 0:00:53]} Ra6 {[%emt 0:01:28]} 50. Nf7 {[%emt 0:01:15]} Rf6 {[%emt 0:00:08]} 51. Ng5+ {[%emt 0:00:24]} Kg6 {[%emt 0:00:52]} 52. Ne4 {[%emt 0:00:17]} Rf4 {[%emt 0:00:44]} 53. Nc5 {[%emt 0:00:33]} Ra5 {[%emt 0:00:38]} 54. Rxd5 {[%emt 0:00:27]} b6 {[%emt 0:00:13]} 55. Rd6+ {[%emt 0:00:53]} Kf5 {[%emt 0:00:06]} 56. Nd3 {[%emt 0:00:56]} Rg4 {[%emt 0:00:26]} 57. Rdxh6 {[%emt 0:00:23]} Rg3 {[%emt 0:00:26]} 58. R2h5+ {[%emt 0:00:18]} Ke4 {[%emt 0:00:06]} 59. Rxa5 {[%emt 0:00:35]} bxa5 {[%emt 0:00:03]} 60. Nc5+ {[%emt 0:00:21]} Kd4 {[%emt 0:00:07]} 61. Nb7 {[%emt 0:00:34]} Rg2+ {[%emt 0:00:07]} 62. Ka3 {[%emt 0:00:10]} Kc3 {[%emt 0:00:11]} 63. Nxa5 {[%emt 0:00:15]} Rg1 {[%emt 0:00:06]} 64. Rc6+ {[%emt 0:00:06]} Kd4 {[%emt 0:00:03]} 65. Nc4 {[%emt 0:00:16]} Kd5 {[%emt 0:00:10]} 66. Rc7 {[%emt 0:00:24]} Rg3 {[%emt 0:00:05]} 67. a5 {[%emt 0:00:16]} Rg6 {[%emt 0:00:04]} 68. Kb4 {[%emt 0:00:25]} Ra6 {[%emt 0:00:17]} 69. Kb5 {[%emt 0:00:21]} Rh6 {[%emt 0:00:15]} 70. a6 {[%emt 0:00:15]} Rh8 {[%emt 0:06:19]} 1-0

[Event "Jerry Simon Memorial 2024"]
[Site "New York"]
[Date "2024.11.23"]
[Round "1.2"]
[White "Nkululeko, Nkosi"]
[Black "Ross, Tyler"]
[Result "1-0"]
[ECO "C01"]
[WhiteElo "1906"]
[BlackElo "1792"]
[Annotator "RC"]
[PlyCount "159"]
[EventDate "2024.11.22"]
[EventType "swiss"]
[EventCountry "USA"]
[SourceTitle "playchess.com"]
[Source "ChessBase"]
[SourceQuality "1"]
[TimeControl "5400+30"]

1. e4 {[%emt 0:00:02]} e6 {[%emt 0:00:10]} 2. d4 {[%emt 0:00:40]} d5 {[%emt 0:00:25]} 3. exd5 {[%emt 0:01:17]} exd5 {[%emt 0:00:16]} 4. Bd3 {[%emt 0:00:10]} Bd6 {[%emt 0:00:30]} 5. Ne2 {[%emt 0:00:28]} Ne7 {[%emt 0:00:27]} 6. c4 {[%emt 0:02:34]} dxc4 {[%emt 0:02:28]} 7. Bxc4 {[%emt 0:00:02]} O-O {[%emt 0:00:48]} 8. Bg5 {[%emt 0:00:55]} c6 {[%emt 0:01:45]} 9. Nbc3 {[%emt 0:00:44]} Bf5 {[%emt 0:01:42]} 10. O-O {[%emt 0:05:30]} Qc7 {[%emt 0:01:44]} 11. h3 {[%emt 0:00:20]} h6 {[%emt 0:08:45]} 12. Bh4 {[%emt 0:00:51]} Nd7 {[%emt 0:01:50]} 13. Rc1 {[%emt 0:00:56]} Ng6 {[%emt 0:06:54]} 14. Bg3 {[%emt 0:00:19]} Nf6 {[%emt 0:01:20]} 15. Qb3 {[%emt 0:03:58]} b5 {[%emt 0:10:17]} 16. Bxb5 {[%emt 0:01:24]} Rab8 {[%emt 0:04:33]} 17. Qd1 {[%emt 0:02:34]} Bxg3 {[%emt 0:05:37]} 18. Nxg3 {[%emt 0:01:38]} Bd7 {[%emt 0:08:09]} 19. Bc4 {[%emt 0:01:05]} Rxb2 {[%emt 0:01:23]} 20. Qd3 {[%emt 0:06:57]} Nf4 {[%emt 0:03:39]} 21. Qf3 {[%emt 0:00:12]} Qb8 {[%emt 0:07:04]} 22. Nce4 {[%emt 0:04:41]} N6d5 {[%emt 0:09:50]} 23. Nc5 {[%emt 0:09:08]} Qd8 {[%emt 0:02:11]} 24. Nh5 {[%emt 0:06:14]} Nxh5 {[%emt 0:02:53]} 25. Qxh5 {[%emt 0:00:42]} Bc8 {[%emt 0:00:29]} 26. Nd3 {[%emt 0:03:11]} Rd2 {[%emt 0:01:42]} 27. Rfd1 {[%emt 0:04:14]} Rxd1+ {[%emt 0:00:33]} 28. Qxd1 {[%emt 0:00:53]} Nb6 {[%emt 0:01:11]} 29. Ne5 {[%emt 0:01:04]} Nxc4 {[%emt 0:03:13]} 30. Rxc4 {[%emt 0:00:03]} Qd5 {[%emt 0:01:29]} 31. Qa4 {[%emt 0:02:07]} Be6 {[%emt 0:02:28]} 32. Qxc6 {[%emt 0:04:56]} Qa5 {[%emt 0:02:41]} 33. Ra4 {[%emt 0:03:09]} Qe1+ {[%emt 0:00:24]} 34. Kh2 {[%emt 0:00:01]} Qxf2 {[%emt 0:00:26]} 35. Qf3 {[%emt 0:03:17]} Qd2 {[%emt 0:01:47]} 36. Qd3 {[%emt 0:03:37]} Qf4+ {[%emt 0:00:19]} 37. Qg3 {[%emt 0:00:02]} Qd2 {[%emt 0:00:40]} 38. Nf3 {[%emt 0:00:12]} Qc2 {[%emt 0:00:55]} 39. Rxa7 {[%emt 0:01:08]} Bxa2 {[%emt 0:00:14]} 40. Ne5 {[%emt 0:01:49]} Bd5 {[%emt 0:00:45]} 41. Nd7 {[%emt 0:01:22]} Rd8 {[%emt 0:03:55]} 42. Nf6+ {[%emt 0:00:17]} Kh8 {[%emt 0:01:04]} 43. Nxd5 {[%emt 0:04:19]} Rxd5 {[%emt 0:00:11]} 44. Rxf7 {[%emt 0:00:31]} Rg5 {[%emt 0:00:05]} 45. Qf3 {[%emt 0:00:21]} Qg6 {[%emt 0:00:23]} 46. Rf8+ {[%emt 0:06:39]} Kh7 {[%emt 0:00:06]} 47. Rf4 {[%emt 0:01:01]} Qd6 {[%emt 0:01:44]} 48. Qe4+ {[%emt 0:05:16]} Kh8 {[%emt 0:00:35]} 49. Qa8+ {[%emt 0:00:22]} Kh7 {[%emt 0:00:26]} 50. g3 {[%emt 0:00:17]} Qg6 {[%emt 0:00:52]} 51. Qf3 {[%emt 0:01:47]} Qc2+ {[%emt 0:00:36]} 52. Qg2 {[%emt 0:00:03]} Qg6 {[%emt 0:00:23]} 53. h4 {[%emt 0:00:22]} Rg4 {[%emt 0:00:40]} 54. Rxg4 {[%emt 0:01:07]} Qxg4 {[%emt 0:00:13]} 55. Qc2+ {[%emt 0:00:10]} Kg8 {[%emt 0:00:16]} 56. d5 {[%emt 0:00:29]} Qd4 {[%emt 0:00:47]} 57. Qc8+ {[%emt 0:00:31]} Kh7 {[%emt 0:00:30]} 58. Qf5+ {[%emt 0:00:06]} Kh8 {[%emt 0:00:34]} 59. h5 {[%emt 0:01:32]} Qc5 {[%emt 0:01:09]} 60. Kh3 {[%emt 0:00:26]} Qg1 {[%emt 0:00:48]} 61. Qe4 {[%emt 0:00:57]} Qf1+ {[%emt 0:00:30]} 62. Kg4 {[%emt 0:00:34]} Qd1+ {[%emt 0:00:26]} 63. Kh4 {[%emt 0:00:35]} Qd2 {[%emt 0:00:49]} 64. Qe8+ {[%emt 0:01:46]} Kh7 {[%emt 0:00:14]} 65. Qg6+ {[%emt 0:00:02]} Kg8 {[%emt 0:00:21]} 66. d6 {[%emt 0:00:32]} Qh2+ {[%emt 0:00:49]} 67. Kg4 {[%emt 0:00:02]} Qe2+ {[%emt 0:00:13]} 68. Kh3 {[%emt 0:00:07]} Qf1+ {[%emt 0:00:19]} 69. Kg4 {[%emt 0:00:08]} Qe2+ {[%emt 0:00:51]} 70. Kf5 {[%emt 0:00:11]} Qf3+ {[%emt 0:00:29]} 71. Ke6 {[%emt 0:00:22]} Qe3+ {[%emt 0:00:45]} 72. Kd7 {[%emt 0:00:14]} Qa7+ {[%emt 0:00:08]} 73. Kd8 {[%emt 0:00:46]} Qb8+ {[%emt 0:00:52]} 74. Ke7 {[%emt 0:00:12]} Qa7+ {[%emt 0:00:50]} 75. d7 {[%emt 0:00:20]} Qc5+ {[%emt 0:00:36]} 76. Qd6 {[%emt 0:02:35]} Qg5+ {[%emt 0:00:16]} 77. Ke6 {[%emt 0:00:09]} Qf6+ {[%emt 0:00:40]} 78. Kd5 {[%emt 0:00:03]} Qf5+ {[%emt 0:00:35]} 79. Kd4 {[%emt 0:00:36]} Qg4+ {[%emt 0:00:09]} 80. Kd5 {[%emt 0:10:17]} 1-0

[Event "Jerry Simon Memorial 2024"]
[Site "New York"]
[Date "2024.11.23"]
[Round "1.3"]
[White "Ching, Mike Wai Chong"]
[Black "Shvarts, Tim"]
[Result "0-1"]
[ECO "C54"]
[WhiteElo "1722"]
[BlackElo "1915"]
[Annotator "RC"]
[PlyCount "104"]
[EventDate "2024.11.22"]
[EventType "swiss"]
[EventCountry "USA"]
[SourceTitle "playchess.com"]
[Source "ChessBase"]
[SourceQuality "1"]
[TimeControl "5400+30"]

1. e4 {[%emt 0:00:01]} e5 {[%emt 0:00:08]} 2. Nf3 {[%emt 0:00:02]} Nc6 {[%emt 0:00:07]} 3. Bc4 {[%emt 0:00:17]} Bc5 {[%emt 0:00:13]} 4. d3 {[%emt 0:00:18]} Nf6 {[%emt 0:00:15]} 5. c3 {[%emt 0:00:49]} O-O {[%emt 0:00:37]} 6. b4 {[%emt 0:00:38]} Bb6 {[%emt 0:02:02]} 7. O-O {[%emt 0:01:21]} d6 {[%emt 0:00:34]} 8. Bb3 {[%emt 0:00:44]} h6 {[%emt 0:00:46]} 9. h3 {[%emt 0:00:03]} Re8 {[%emt 0:01:26]} 10. Re1 {[%emt 0:00:05]} Be6 {[%emt 0:01:32]} 11. Bxe6 {[%emt 0:05:09]} Rxe6 {[%emt 0:00:10]} 12. Be3 {[%emt 0:00:02]} Bxe3 {[%emt 0:08:39]} 13. fxe3 {[%emt 0:01:03]} d5 {[%emt 0:02:37]} 14. Nbd2 {[%emt 0:03:41]} Ne7 {[%emt 0:18:08]} 15. Qc2 {[%emt 0:01:15]} c6 {[%emt 0:01:07]} 16. d4 {[%emt 0:01:33]} Ng6 {[%emt 0:12:38]} 17. dxe5 {[%emt 0:04:27]} Nxe5 {[%emt 0:00:19]} 18. Nd4 {[%emt 0:00:13]} Re8 {[%emt 0:00:01]} 19. Rad1 {[%emt 0:05:12]} Qc7 {[%emt 0:02:38]} 20. Nf5 {[%emt 0:09:22]} g6 {[%emt 0:08:54]} 21. Nd4 {[%emt 0:07:59]} Nc4 {[%emt 0:01:40]} 22. Nxc4 {[%emt 0:03:26]} dxc4 {[%emt 0:00:20]} 23. e5 {[%emt 0:03:17]} Qxe5 {[%emt 0:00:40]} 24. Nf3 {[%emt 0:01:44]} Qe4 {[%emt 0:01:31]} 25. Qf2 {[%emt 0:00:09]} Rad8 {[%emt 0:06:21]} 26. Rd4 {[%emt 0:00:51]} Qe6 {[%emt 0:00:31]} 27. Qh4 {[%emt 0:01:33]} Kg7 {[%emt 0:02:15]} 28. Rxc4 {[%emt 0:05:47]} Ne4 {[%emt 0:01:38]} 29. Rd4 {[%emt 0:00:29]} g5 {[%emt 0:00:10]} 30. Qg4 {[%emt 0:05:46]} f5 {[%emt 0:00:47]} 31. Qh5 {[%emt 0:00:03]} Nf6 {[%emt 0:01:27]} 32. Nxg5 {[%emt 0:00:22]} hxg5 {[%emt 0:01:18]} 33. Qxg5+ {[%emt 0:00:02]} Kf7 {[%emt 0:00:14]} 34. Rh4 {[%emt 0:05:15]} Rg8 {[%emt 0:00:25]} 35. Qf4 {[%emt 0:00:55]} Rd2 {[%emt 0:01:21]} 36. g4 {[%emt 0:01:01]} fxg4 {[%emt 0:01:09]} 37. Rf1 {[%emt 0:00:56]} gxh3+ {[%emt 0:00:13]} 38. Kh1 {[%emt 0:00:04]} Ke7 {[%emt 0:01:48]} 39. e4 {[%emt 0:00:41]} Rd7 {[%emt 0:03:23]} 40. c4 {[%emt 0:03:26]} b5 {[%emt 0:01:27]} 41. e5 {[%emt 0:00:40]} Ne8 {[%emt 0:02:17]} 42. Rh6 {[%emt 0:05:56]} Qxc4 {[%emt 0:03:49]} 43. Rh7+ {[%emt 0:00:33]} Kd8 {[%emt 0:00:03]} 44. Rxd7+ {[%emt 0:00:25]} Kxd7 {[%emt 0:00:01]} 45. Rd1+ {[%emt 0:03:18]} Kc7 {[%emt 0:02:00]} 46. Qe3 {[%emt 0:00:13]} Qxa2 {[%emt 0:00:08]} 47. Qxh3 {[%emt 0:00:17]} Rg7 {[%emt 0:00:52]} 48. e6 {[%emt 0:07:38]} Qc2 {[%emt 0:01:22]} 49. Rd7+ {[%emt 0:03:03]} Rxd7 {[%emt 0:00:06]} 50. exd7 {[%emt 0:00:17]} Qd1+ {[%emt 0:00:03]} 51. Kh2 {[%emt 0:00:06]} Qxd7 {[%emt 0:00:05]} 52. Qe3 {[%emt 0:00:18]} Kb7 {[%emt 0:00:13]} 0-1

[Event "Jerry Simon Memorial 2024"]
[Site "New York"]
[Date "2024.11.23"]
[Round "1.4"]
[White "Belenky, Nicholas"]
[Black "Raitzin, Misha"]
[Result "1/2-1/2"]
[ECO "C78"]
[WhiteElo "1988"]
[BlackElo "1821"]
[Annotator "RC"]
[PlyCount "25"]
[EventDate "2024.11.22"]
[EventType "swiss"]
[EventCountry "USA"]
[SourceTitle "playchess.com"]
[Source "ChessBase"]
[SourceQuality "1"]
[TimeControl "5400+30"]

1. e4 {[%emt 0:00:03]} e5 {[%emt 0:00:03]} 2. Nf3 {[%emt 0:00:06]} Nc6 {[%emt 0:00:06]} 3. Bb5 {[%emt 0:00:06]} a6 {[%emt 0:00:22]} 4. Ba4 {[%emt 0:00:07]} Nf6 {[%emt 0:00:07]} 5. O-O {[%emt 0:00:12]} b5 {[%emt 0:00:06]} 6. Bb3 {[%emt 0:00:05]} Bc5 {[%emt 0:00:07]} 7. c3 {[%emt 0:01:10]} d6 {[%emt 0:00:06]} 8. d4 {[%emt 0:01:00]} Bb6 {[%emt 0:00:05]} 9. h3 {[%emt 0:05:49]} h6 {[%emt 0:01:02]} 10. dxe5 {[%emt 0:06:04]} Nxe5 {[%emt 0:00:44]} 11. Nxe5 {[%emt 0:00:48]} dxe5 {[%emt 0:00:07]} 12. Qd5 {[%emt 1:21:00]} Qd7 13. Qxd7+ {[%emt 0:00:00]} 1/2-1/2

[Event "Jerry Simon Memorial 2024"]
[Site "New York"]
[Date "2024.11.23"]
[Round "1.5"]
[White "Kharchykau, Dzmitry"]
[Black "Chachere, Theodore"]
[Result "0-1"]
[ECO "A29"]
[WhiteElo "1709"]
[BlackElo "1907"]
[Annotator "RC"]
[PlyCount "114"]
[EventDate "2024.11.22"]
[EventType "swiss"]
[EventCountry "USA"]
[SourceTitle "playchess.com"]
[Source "ChessBase"]
[SourceQuality "1"]
[TimeControl "5400+30"]

1. c4 {[%emt 0:00:03]} e5 {[%emt 0:03:05]} 2. Nc3 {[%emt 0:00:06]} Nf6 {[%emt 0:00:10]} 3. Nf3 {[%emt 0:00:13]} Nc6 {[%emt 0:00:25]} 4. g3 {[%emt 0:00:06]} Bb4 {[%emt 0:00:32]} 5. Bg2 {[%emt 0:04:19]} O-O {[%emt 0:00:15]} 6. O-O {[%emt 1:28:43]} Bxc3 {[%emt 0:00:31]} 7. bxc3 {[%emt 0:00:00]} Re8 {[%emt 0:02:07]} 8. d3 {[%emt 0:00:00]} e4 {[%emt 0:10:43]} 9. Ng5 {[%emt 0:00:00]} exd3 {[%emt 0:02:24]} 10. exd3 {[%emt 0:00:00]} h6 {[%emt 0:23:06]} 11. Ne4 {[%emt 0:00:00]} d6 {[%emt 0:04:27]} 12. Nxf6+ {[%emt 0:00:00]} Qxf6 {[%emt 0:00:13]} 13. d4 {[%emt 0:00:00]} Bd7 {[%emt 0:02:55]} 14. Bf4 {[%emt 0:00:00]} Rad8 {[%emt 0:08:43]} 15. h4 {[%emt 0:00:00]} b6 {[%emt 0:01:12]} 16. Qc1 {[%emt 0:00:00]} Na5 {[%emt 0:03:36]} 17. c5 {[%emt 0:00:00]} dxc5 {[%emt 0:05:54]} 18. Bxc7 {[%emt 0:00:00]} Rc8 {[%emt 0:00:12]} 19. Be5 {[%emt 0:00:00]} Qe6 {[%emt 0:05:50]} 20. Re1 {[%emt 0:00:00]} cxd4 {[%emt 0:01:19]} 21. Bxd4 {[%emt 0:00:00]} Qxe1+ {[%emt 0:04:43]} 22. Qxe1 {[%emt 0:00:00]} Re5 {[%emt 0:19:08]} 23. Qe2 Rxe2 {[%emt 0:00:00]} 24. Rc1 {[%emt 0:09:00]} Re1+ 25. Rxe1 {[%emt 0:00:00]} Be6 {[%emt 0:00:00]} 26. Re2 {[%emt 0:00:00]} Rc4 {[%emt 0:00:00]} 27. Be4 {[%emt 0:00:00]} Ra4 {[%emt 0:00:00]} 28. Bb1 {[%emt 0:00:00]} Kf8 {[%emt 0:00:00]} 29. f4 {[%emt 0:00:00]} Bd5 {[%emt 0:00:00]} 30. Be5 {[%emt 0:00:00]} Nc4 {[%emt 0:00:00]} 31. Bc7 {[%emt 0:00:00]} Ra3 {[%emt 0:00:00]} 32. Bd8 {[%emt 0:00:00]} Rxc3 {[%emt 0:00:16]} 33. Be7+ {[%emt 0:00:00]} Kg8 {[%emt 0:00:11]} 34. Kf2 {[%emt 0:00:00]} Rf3+ {[%emt 0:01:51]} 35. Ke1 {[%emt 0:00:00]} Rxg3 {[%emt 0:01:56]} 36. Bc5 {[%emt 0:00:00]} Bc6 {[%emt 0:00:45]} 37. Bf2 {[%emt 0:00:00]} Rh3 {[%emt 0:00:52]} 38. Be4 {[%emt 0:01:39]} Bxe4 {[%emt 0:00:58]} 39. Rxe4 {[%emt 0:00:02]} Nd6 {[%emt 0:00:39]} 40. Ra4 {[%emt 0:01:02]} Nb5 {[%emt 0:00:42]} 41. Rb4 {[%emt 0:01:48]} Nc3 {[%emt 0:00:31]} 42. a4 {[%emt 0:00:46]} Rd3 {[%emt 0:00:36]} 43. Bd4 {[%emt 0:00:55]} Nd5 {[%emt 0:00:14]} 44. Rc4 {[%emt 0:00:27]} Nxf4 {[%emt 0:00:37]} 45. Bxb6 {[%emt 0:01:06]} axb6 {[%emt 0:00:39]} 46. Rxf4 {[%emt 0:00:02]} Kf8 {[%emt 0:00:33]} 47. Re4 {[%emt 0:00:32]} g6 {[%emt 0:00:16]} 48. Ke2 {[%emt 0:00:06]} Rb3 {[%emt 0:00:07]} 49. Kd2 {[%emt 0:00:17]} Kg7 {[%emt 0:00:15]} 50. Kc2 {[%emt 0:00:10]} Rf3 {[%emt 0:00:35]} 51. Rb4 {[%emt 0:00:24]} Rf6 {[%emt 0:00:04]} 52. Kd3 {[%emt 0:00:17]} Re6 {[%emt 0:00:25]} 53. Kd4 {[%emt 0:00:14]} f5 {[%emt 0:00:18]} 54. Kd5 {[%emt 0:00:23]} Kf6 {[%emt 0:00:06]} 55. Rc4 {[%emt 0:00:59]} g5 {[%emt 0:00:40]} 56. h5 {[%emt 0:00:52]} g4 {[%emt 0:01:05]} 57. Rc7 {[%emt 0:00:19]} Re4 {[%emt 0:00:53]} 0-1

[Event "Jerry Simon Memorial 2024"]
[Site "New York"]
[Date "2024.11.23"]
[Round "1.6"]
[White "Diamond, Colin"]
[Black "Patel, Raza Mikal"]
[Result "0-1"]
[ECO "D45"]
[WhiteElo "1906"]
[BlackElo "1733"]
[Annotator "RC"]
[PlyCount "82"]
[EventDate "2024.11.22"]
[EventType "swiss"]
[EventCountry "USA"]
[SourceTitle "playchess.com"]
[Source "ChessBase"]
[SourceQuality "1"]
[TimeControl "5400+30"]

1. d4 {[%emt 0:00:02]} d5 {[%emt 0:03:48]} 2. c4 {[%emt 0:00:05]} c6 {[%emt 0:00:10]} 3. Nc3 {[%emt 0:00:04]} Nf6 {[%emt 0:01:00]} 4. e3 {[%emt 0:00:05]} e6 {[%emt 0:00:06]} 5. Nf3 {[%emt 0:00:05]} Nbd7 {[%emt 0:00:08]} 6. Be2 {[%emt 0:00:08]} Bd6 {[%emt 0:00:06]} 7. O-O {[%emt 0:00:11]} O-O {[%emt 0:00:15]} 8. b3 {[%emt 0:00:09]} dxc4 {[%emt 0:01:05]} 9. bxc4 {[%emt 0:00:33]} Re8 {[%emt 0:01:17]} 10. e4 {[%emt 0:04:22]} e5 {[%emt 0:01:09]} 11. d5 {[%emt 0:00:57]} Nc5 {[%emt 0:03:01]} 12. Qc2 {[%emt 0:04:38]} Bg4 {[%emt 0:02:49]} 13. Ne1 {[%emt 0:11:23]} Bxe2 {[%emt 0:04:12]} 14. Qxe2 {[%emt 0:00:09]} cxd5 {[%emt 0:10:01]} 15. cxd5 {[%emt 0:00:30]} a6 {[%emt 0:02:30]} 16. Nd3 {[%emt 0:04:59]} Nxd3 {[%emt 0:05:09]} 17. Qxd3 {[%emt 0:00:07]} h6 {[%emt 0:03:17]} 18. Be3 {[%emt 0:02:31]} Ng4 {[%emt 0:04:01]} 19. Bd2 {[%emt 0:01:50]} Kh7 {[%emt 0:09:31]} 20. h3 {[%emt 0:01:03]} Nf6 {[%emt 0:46:55]} 21. f4 {[%emt 0:03:41]} Qb6+ {[%emt 0:00:00]} 22. Kh1 {[%emt 0:01:09]} Qd4 {[%emt 0:00:00]} 23. Qc2 {[%emt 0:04:26]} Kh8 {[%emt 0:00:00]} 24. f5 {[%emt 0:01:12]} Rac8 {[%emt 0:00:00]} 25. Rad1 {[%emt 0:04:55]} Bb4 {[%emt 0:00:00]} 26. Be1 {[%emt 0:03:14]} Qc4 {[%emt 0:00:00]} 27. Rf3 {[%emt 0:00:52]} Bxc3 {[%emt 0:00:00]} 28. Rxc3 {[%emt 0:00:43]} Qf1+ {[%emt 0:00:00]} 29. Kh2 {[%emt 0:00:04]} Qf4+ {[%emt 0:00:00]} 30. Bg3 {[%emt 0:12:51]} Qxg3+ {[%emt 0:00:00]} 31. Rxg3 {[%emt 0:01:05]} Rxc2 {[%emt 0:00:00]} 32. Rb3 {[%emt 0:00:13]} Nxe4 {[%emt 0:00:00]} 33. Rxb7 {[%emt 0:00:15]} Nc3 {[%emt 0:00:00]} 34. Rd3 {[%emt 0:00:29]} e4 {[%emt 0:00:00]} 35. Rg3 {[%emt 0:00:30]} Nxd5 {[%emt 0:00:00]} 36. Rxf7 {[%emt 0:00:11]} Rc7 {[%emt 0:00:00]} 37. Rxc7 {[%emt 0:00:16]} Nxc7 {[%emt 0:00:00]} 38. Kg1 {[%emt 0:00:06]} e3 {[%emt 0:00:00]} 39. Kf1 {[%emt 0:00:03]} Nd5 {[%emt 0:00:00]} 40. Rg4 {[%emt 0:01:36]} e2+ {[%emt 0:00:00]} 41. Ke1 {[%emt 0:00:03]} Ne3 {[%emt 0:00:05]} 0-1

[Event "Jerry Simon Memorial 2024"]
[Site "New York"]
[Date "2024.11.23"]
[Round "1.7"]
[White "Quirk, Duk Hunter"]
[Black "Towsen, John"]
[Result "1-0"]
[ECO "C11"]
[WhiteElo "1610"]
[BlackElo "1892"]
[Annotator "NA RC"]
[PlyCount "49"]
[EventDate "2024.11.22"]
[EventType "swiss"]
[EventCountry "USA"]
[SourceTitle "playchess.com"]
[Source "ChessBase"]
[SourceQuality "1"]
[TimeControl "5400+30"]

1. e4 {[%emt 0:00:30]} Nf6 {[%emt 0:00:30]} 2. Nc3 {[%emt 0:00:30]} d5 {[%emt 0:00:04]} 3. e5 {[%emt 0:01:05]} Nfd7 {[%emt 0:00:07]} 4. d4 {[%emt 0:04:11]} c5 {[%emt 0:01:21]} 5. Be3 {[%emt 0:08:18]} cxd4 {[%emt 0:00:33]} 6. Bxd4 {[%emt 0:00:27]} e6 {[%emt 0:00:11]} 7. f4 {[%emt 0:01:52]} Nc6 {[%emt 0:00:42]} 8. Nf3 {[%emt 0:01:54]} Nxd4 {[%emt 0:01:47] C11: French: Classical System: 4 e5 and 4 Bg5 dxe4.} 9. Nxd4 {[%emt 0:00:49]} Bc5 {[%emt 0:01:26]} 10. Nb3 {[%emt 0:03:16]} Bb4 {[%emt 0:12:02]} 11. Qd4 {[%emt 0:12:27]} Qb6 {[%emt 0:08:52]} 12. O-O-O {[%emt 0:07:46]} Nc5 {[%emt 0:31:30]} 13. Bb5+ {[%emt 0:02:18]} Kd8 {[%emt 0:15:54]} 14. Qxb4 {[%emt 0:01:20]} Nxb3+ {[%emt 0:01:53]} 15. Qxb3 {[%emt 0:00:35]} a6 {[%emt 0:01:40]} 16. Be2 {[%emt 0:07:33]} Qe3+ {[%emt 0:00:13]} 17. Kb1 {[%emt 0:00:02]} Bd7 {[%emt 0:00:21]} 18. Qxb7 {[%emt 0:00:45]} Ra7 {[%emt 0:04:11]} 19. Qb8+ {[%emt 0:01:35]} Bc8 {[%emt 0:00:33]} 20. Nxd5 {[%emt 0:07:45]} exd5 {[%emt 0:00:14]} 21. Rxd5+ {[%emt 0:00:04]} Rd7 {[%emt 0:00:34]} 22. Rxd7+ {[%emt 0:00:13]} Kxd7 {[%emt 0:00:58]} 23. Rd1+ {[%emt 0:00:20]} Ke6 {[%emt 0:02:01]} 24. Bg4+ {[%emt 0:00:10]} f5 {[%emt 0:00:25]} 25. Rd6+ {[%emt 0:00:07]} 1-0